Cogmind - Beta 14 @@@ ROGUE MODE // 2024.09.21 @ 13:04:20 Player: s0lid Result: Destroyed by S-27 Virus with Autogun Performance ------------- Evolutions (3) 1500 Regions Visited (6) 1200 Robots Destroyed (109) 545 Value Destroyed (3505) 3505 Prototype IDs (14) 280 Alien Tech Used (0) 0 Bonus (552) 552 TOTAL SCORE: 7582 Bonus ------- High Alert Combat Kills 405 Follower Combat Kills 147 Cogmind --------- Core Integrity 0/700 Matter 218/300 Energy 476/480 System Corruption 40% Temperature Cool (0) Movement Walking (200) Ox1 Location -7/Lower Caves Parts ------- > --- POWER (2) -------- Improved Deuterium Engine Improved Deuterium Engine > --- PROPULSION (4) --- Light Treads Improved Carbon-fiber Leg Makeshift Leg > --- UTILITY (5) ------ Large Storage Unit Advanced Visual Processing Unit Improved Sensor Array Advanced Targeting Computer Hardened Medium Armor Plating > --- WEAPON (2) ------- Autogun Gauss Cannon > --- INVENTORY (15) --- Improved Deuterium Engine Heavy Antimatter Reactor Improved Melee Analysis Suite Weapon Cycler Force Booster Improved Thermal Defense Suite Hacking Suite Dynamic Insulation System Heavy Ion Cannon Gauss Cannon Tesla Bomb Launcher Improved Datajack Peak State ------------ > --- POWER ------------ Improved Deuterium Engine Improved Deuterium Engine > --- PROPULSION ------- Carbon-fiber Leg Carbon-fiber Leg Improved Titanium Leg Enhanced Armored Leg > --- UTILITY ---------- Large Storage Unit Visual Processing Unit Improved Terrain Scan Processor Core Analyzer System Shield > --- WEAPON ----------- Cooled Plasma Rifle Tesla Bomb Launcher > --- INVENTORY -------- Improved Deuterium Engine Improved Deuterium Engine Heavy Antimatter Reactor Advanced Treads Advanced Treads Advanced Targeting Computer Improved Melee Analysis Suite Hardened Medium Armor Plating Improved Thermal Defense Suite Hardlight Generator Lightning Gun Heavy Ion Cannon Flak Cannon Tesla Bomb Launcher Improved Datajack [Rating: 58] Favorites ----------- Power Improved Deuterium Engine Engine Improved Deuterium Engine Power Core Nuclear Core Reactor Heavy Antimatter Reactor Propulsion Advanced Treads Treads Advanced Treads Leg Makeshift Leg Wheel Wheel Hover Unit Hover Unit Utility Visual Processing Unit Device Terrain Scanner Storage Large Storage Unit Processor Visual Processing Unit Hackware System Shield Protection Improved Light Armor Plating Weapon Makeshift Sword Energy Gun Lightning Gun Energy Cannon Ion Cannon Ballistic Gun Assault Rifle Ballistic Cannon Flak Cannon Launcher Tesla Bomb Launcher Special Weapon Mining Laser Slashing Weapon Makeshift Sword Build | -11 -10 -9 -8 -7 -7 -7 ------- Run | Yrd Mat Mat Mat Fac Low Low Slots Evolved 6 | . . 2 2 2 . . Power 1 | . . . . 1 . . Propulsion 2 | . . 1 . 1 . . Utility 3 | . . 1 2 . . . Weapon . | . . . . . . . Parts Attached 133 | 9 7 9 20 59 16 13 Power 20 | 1 1 2 1 9 3 3 Engine 10 | 1 . 1 . 3 2 3 Core 9 | . 1 1 1 6 . . Reactor 1 | . . . . . 1 . Propulsion 34 | 4 3 1 5 16 3 2 Treads 11 | . . . 1 7 1 2 Leg 11 | . . . 2 7 2 . Wheel 9 | 4 1 1 2 1 . . Hover 3 | . 2 . . 1 . . Flight . | . . . . . . . Utility 34 | 2 1 1 5 13 7 5 Device 14 | 1 . . 3 5 3 2 Storage 4 | 1 1 . 1 1 . . Processor 7 | . . 1 1 2 1 2 Hackware 1 | . . . . 1 . . Protection 8 | . . . . 4 3 1 Artifact . | . . . . . . . Weapon 45 | 2 2 5 9 21 3 3 Energy Gun 12 | . . . 2 9 1 . Energy Cannon 10 | . . 3 2 4 1 . Ballistic Gun 5 | 2 1 1 . . . 1 Ballistic Cannon 9 | . . 1 4 3 . 1 Launcher 5 | . . . 1 4 . . Special Weapon 3 | . 1 . . 1 . 1 Impact Weapon . | . . . . . . . Slashing Weapon 1 | . . . . . 1 . Piercing Weapon . | . . . . . . . Special Melee Weapon . | . . . . . . . Unidentified Prototypes 11 | . . 2 1 7 1 . Corrupted Parts 2 | . . . . 1 1 . System Corruption 20 | . . . . 10 10 . Parts Lost 47 | . . 1 16 21 . 9 Power 7 | . . . 2 3 . 2 Propulsion 17 | . . 1 5 10 . 1 Utility 11 | . . . 3 5 . 3 Weapon 12 | . . . 6 3 . 3 Highest Loss Streak 12 | . . 1 8 12 . 5 To Critical Strikes 1 | . . . 1 . . . Average Slot Usage (%) 90 | . 100 87 90 89 91 87 Engine 9 | . 4 4 8 4 14 12 Core 2 | . 9 6 . 5 . . Treads 11 | . . . 5 16 14 12 Leg 10 | . . . 10 10 14 15 Hover 3 | . 20 22 4 . . . Device 8 | . 14 11 15 7 6 6 Storage 7 | . 14 11 9 5 7 7 Processor 12 | . . 7 17 16 11 14 Protection 4 | . . . . 4 6 6 Energy Gun 3 | . . . . 5 4 1 Energy Cannon 3 | . . 7 8 2 2 . Ballistic Gun 2 | . 27 6 . . . 1 Ballistic Cannon 2 | . . 7 8 2 . 6 Slashing Weapon 1 | . . . . . 4 . Peak Build Rating 58 | 8 10 17 24 58 55 51 Average Rating 36 | 5 9 14 21 40 46 41 On Entrance 15 | . 8 10 17 5 14 55 Naked Turns . | . . . . . . . Heaviest Build 68 | 15 20 31 32 68 56 59 Greatest Support 88 | 32 26 12 20 88 50 50 Greatest Overweight (x) 6 | . 2 3 5 6 2 1 Average Overweight (x) . | . . 1 1 . . . Largest Inventory Capacity 15 | 8 10 10 10 15 15 15 Average Capacity 12 | 7 8 10 9 12 15 15 Most Carried 15 | 8 8 10 10 15 15 15 Average Carried 11 | 2 7 9 9 10 14 12 Final Capacity 15 | 8 10 10 5 15 15 15 Final Carried 15 | 8 8 10 5 11 15 12 Class Distribution -------------------- 42% | Derelict-Mutant 16% | Skirmisher 15% | Mutant 14% | Scavenger-Mutant 11% | Scavenger-Skirmisher Dominant Class ---------------- Scavenger-Mutant | -10/Materials Scavenger-Mutant | -9/Materials Scavenger-Skirmisher | -8/Materials Skirmisher | -7/Factory Derelict-Mutant | -7/Lower Caves Derelict-Mutant | -7/Lower Caves Resources | -11 -10 -9 -8 -7 -7 -7 ----------- Run | Yrd Mat Mat Mat Fac Low Low Matter Collected 2846 | 287 224 129 362 1175 347 322 Remotely . | . . . . . . . Salvage Created 4076 | 113 283 186 748 2534 . 212 Parts 252 | 13 21 17 49 137 . 15 Haulers Intercepted 7 | . 1 1 1 4 . . Recyclers Shooed 3 | . 1 . 1 1 . . Parts Field Recycled . | . . . . . . . Retrieved Matter . | . . . . . . . Parts Self-Destructed 24 | . . . . . 11 13 Prevented . | . . . . . . . Kills | -11 -10 -9 -8 -7 -7 -7 ------- Run | Yrd Mat Mat Mat Fac Low Low Combat Hostiles Destroyed 74 | . 4 5 18 38 . 9 Guns 10 | . 4 . 2 4 . . Cannons 40 | . . 5 14 12 . 9 AOE 18 | . . . 2 16 . . Classes Destroyed 16 | 2 3 2 3 6 . . Worker 8 | . . . 2 6 . . Builder 6 | . . . 1 5 . . Tunneler 3 | 3 . . . . . . Hauler 7 | . 1 1 1 4 . . Recycler 4 | 1 1 . 1 1 . . Mechanic 2 | . . . . 2 . . Watcher 5 | . 1 . 2 2 . . Swarmer 19 | . . 2 8 4 . 5 Grunt 28 | . 4 1 7 14 . 2 Brawler 2 | . . . . 1 . 1 Duelist 3 | . . . . 3 . . Protector 1 | . . . . 1 . . Sentry 7 | . . 2 2 3 . . Specialist 1 | . . . . 1 . . Hunter 4 | . . . 1 3 . . Programmer 9 | . . . . 8 . 1 Best Kill Streak 10 | 4 2 3 8 10 . 4 Combat Bots Only 7 | . 1 3 7 6 . 4 Max Kills in Single Turn 3 | 2 1 2 2 3 . 1 Gunslinging . | . . . . . . . Exploded 2 | . . . 1 2 . . Melee . | . . . . . . . Uniques/NPCs Destroyed . | . . . . . . . Combat | -11 -10 -9 -8 -7 -7 -7 -------- Run | Yrd Mat Mat Mat Fac Low Low Hostile Shots Fired 733 | . 20 32 171 398 . 112 Missed 218 | . 6 12 46 126 . 28 Damage Taken 7793 | . 182 227 1777 4199 . 1408 Core 1256 | . 48 52 453 564 . 139 Absorbed by Shields 364 | . . . . 364 . . Core Remaining (%) 71 | 100 80 87 17 . . . Volleys Fired 283 | 5 35 13 49 132 . 49 Largest 2 | 2 2 2 2 2 . 2 Hottest 128 | 40 100 104 112 100 . 128 Shots Fired 417 | 10 69 21 89 170 5 53 Gun 140 | 10 68 . 10 40 1 11 Cannon 223 | . . 21 77 82 4 39 Launcher 41 | . . . 2 39 . . Special 13 | . 1 . . 9 . 3 Kinetic 215 | 10 68 8 37 49 . 43 Thermal 122 | . 1 13 40 61 4 3 Explosive 2 | . . . 2 . . . Electromagnetic 78 | . . . 10 60 1 7 Robot Hit Streak 12 | 5 8 10 12 9 . 8 Robot Miss Streak 8 | 2 2 4 5 8 2 5 Penetration Max . | . . . . . . . Secondary Targets . | . . . . . . . Shots Hit Robots 238 | 6 44 13 59 87 . 29 Core Hits 195 | 5 14 12 51 101 . 12 Critical Kills 1 | . . 1 . . . . Critical Parts Destroyed . | . . . . . . . Critical Strikes 9 | . . 1 . 4 . 4 Burn 1 | . . . . 1 . . Meltdown 1 | . . 1 . . . . Blast 6 | . . . . 3 . 3 Sever 1 | . . . . . . 1 Melee Attacks 5 | . . . . . . 5 Impact . | . . . . . . . Slashing 5 | . . . . . . 5 Piercing . | . . . . . . . Sneak Attacks . | . . . . . . . Combat Hostiles . | . . . . . . . Follow-up Attacks . | . . . . . . . Damage Inflicted 8432 | 90 579 318 1656 4971 . 818 Guns 1517 | 90 579 . 172 587 . 89 Cannons 3512 | . . 318 1187 1368 . 639 Explosions 3311 | . . . 297 3014 . . Melee 90 | . . . . . . 90 Ramming 2 | . . . . 2 . . Kinetic 2857 | 90 579 135 607 790 . 656 Thermal 1877 | . . 183 707 987 . . Explosive 170 | . . . 170 . . . Electromagnetic 3436 | . . . 172 3192 . 72 Impact . | . . . . . . . Slashing 90 | . . . . . . 90 Piercing . | . . . . . . . Highest Corruption 40 | . 2 . . 27 32 40 Average Corruption 21 | . 2 . . 17 22 38 Corruption Purged 5 | . . . . . 5 . Corruption Blocked . | . . . . . . . Effects 197 | . 7 . . 55 96 39 Message Errors 52 | . 3 . . 14 24 11 Matter Fused 38 | . 1 . . 8 23 6 Heat Flow Errors 11 | . 1 . . 1 8 1 Energy Discharges 22 | . 1 . . 5 13 3 Parts Rejected 4 | . . . . 2 . 2 Parts Fused 1 | . . . . 1 . . Data Loss (minor) 26 | . . . . 5 17 4 Data Loss (major) 7 | . . . . 1 4 2 Misfires 13 | . . . . 5 5 3 Alerts 5 | . 1 . . 1 2 1 Misdirections 7 | . . . . 6 . 1 Weapon Failures 11 | . . . . 6 . 5 Overload Shots . | . . . . . . . Overflow Damage 157 | . . . 24 120 . 13 Projectiles 101 | . . . 23 65 . 13 Explosions 56 | . . . 1 55 . . Melee . | . . . . . . . Knockbacks 33 | . . 1 12 16 . 4 Impact . | . . . . . . . Kinetic 29 | . . 1 9 15 . 4 Secondary 4 | . . . 3 1 . . Self-Inflicted Damage 626 | . . . 81 545 . . Shots 18 | . . . 3 15 . . Rammed . | . . . . . . . Targets Rammed 1 | . . . . 1 . . Kicked 1 | . . . . 1 . . Crushed . | . . . . . . . Highest Temperature 393 | . 217 123 194 219 248 393 Average Temperature 82 | . 67 55 61 59 86 172 Received Heat Transfer 1827 | . 120 45 621 735 . 306 Effects 5 | . 1 . . . 2 2 Energy Bleed 2 | . 1 . . . . 1 Interference 3 | . . . . . 2 1 Siege Activations . | . . . . . . . Robots Corrupted 6 | . . . . 6 . . Combat Hostiles 6 | . . . . 6 . . Parts Fried 10 | . . . 1 9 . . Impact Corruptions 2 | . . . 2 . . . Robots Melted 1 | . . 1 . . . . Combat Hostiles . | . . . . . . . Parts Melted 5 | . . 2 1 2 . . Heat Transferred 2611 | . . 296 1012 1303 . . Parts Sabotaged . | . . . . . . . Parts Stolen . | . . . . . . . Parts Stripped . | . . . . . . . Power Chain Reactions 4 | . . . 2 2 . . Alert | -11 -10 -9 -8 -7 -7 -7 ------- Run | Yrd Mat Mat Mat Fac Low Low Peak Influence 1642 | 20 174 179 269 1642 . . Initial 97 | . 13 5 11 97 . . Average 177 | 7 89 48 72 281 . . Maximum Alert Level 5 | . . . 1 5 . . Low Security (%) 78 | 100 100 100 89 63 . . Level 1 9 | . . . 10 13 . . Level 2 4 | . . . . 8 . . Level 3 5 | . . . . 10 . . Level 4 1 | . . . . 3 . . Level 5 . | . . . . . . . High Security . | . . . . . . . Max Security . | . . . . . . . Squads Dispatched 18 | . 1 1 4 12 . . Investigation 2 | . . . 2 . . . Extermination 3 | . . . . 3 . . Reinforcement 11 | . 1 1 2 7 . . Assault 2 | . . . . 2 . . Garrison . | . . . . . . . Intercept . | . . . . . . . Searches Triggered . | . . . . . . . Construction Impeded 2 | . . . 1 1 . . Haulers Reinforced 3 | . . . . 3 . . Active Scanning Responses . | . . . . . . . Cargo Convoy Interrupts 1 | . . . . 1 . . Stealth | -11 -10 -9 -8 -7 -7 -7 --------- Run | Yrd Mat Mat Mat Fac Low Low Distress Signals 10 | . 2 . 5 3 . . Communications Jammed . | . . . . . . . Distress Signals . | . . . . . . . Times Spotted 173 | . 10 7 32 112 . 12 Peak Tracking Total 13 | . 3 4 10 13 . 4 Tactical Retreats 13 | . 1 1 1 7 . 3 Traps | -11 -10 -9 -8 -7 -7 -7 ------- Run | Yrd Mat Mat Mat Fac Low Low Traps Triggered 3 | . 1 . . 2 . . Indirectly 1 | . . . . 1 . . Trap Hack Attempts . | . . . . . . . Triggered . | . . . . . . . Disarmed . | . . . . . . . Reprogrammed . | . . . . . . . Reused . | . . . . . . . Traps Extracted . | . . . . . . . Installed . | . . . . . . . Triggered 2 | . . . . 1 . 1 Machines | -11 -10 -9 -8 -7 -7 -7 ---------- Run | Yrd Mat Mat Mat Fac Low Low Machines Disabled 20 | . 1 . . 19 . . Max in Single Turn 6 | . 1 . . 6 . . Machines Repaired . | . . . . . . . Machines Dismantled . | . . . . . . . Machines Sabotaged . | . . . . . . . Overloaded Fab Kills . | . . . . . . . Hacking | -11 -10 -9 -8 -7 -7 -7 --------- Run | Yrd Mat Mat Mat Fac Low Low Machines Accessed 13 | . 2 3 5 3 . . Terminals 10 | . 2 2 3 3 . . Fabricators . | . . . . . . . Repair Stations . | . . . . . . . Recycling Units 1 | . . . 1 . . . Scanalyzers 2 | . . 1 1 . . . Garrison Access . | . . . . . . . Total Hacks 30 | . 6 8 10 6 . . Successful 16 | . 3 4 6 3 . . Failed 14 | . 3 4 4 3 . . Catastrophic 3 | . . . 1 2 . . Database Lockouts . | . . . . . . . Manual 13 | . 5 . 6 2 . . Terminals 23 | . 6 4 7 6 . . Fabricators . | . . . . . . . Repair Stations . | . . . . . . . Recycling Units 2 | . . . 2 . . . Scanalyzers 5 | . . 4 1 . . . Garrison Access . | . . . . . . . Terminal Hacks 7 | . 1 1 2 3 . . Open DSF 1 | . . . . 1 . . Alert Level 1 | . 1 . . . . . Unreport Threat 3 | . . 1 1 1 . . Locate Traps 2 | . . . 1 1 . . Fabricator Hacks . | . . . . . . . Repair Station Hacks . | . . . . . . . Recycling Unit Hacks 1 | . . . 1 . . . Report Inventory 1 | . . . 1 . . . Scanalyzer 3 | . . 3 . . . . Insert Component 2 | . . 2 . . . . Analyze 1 | . . 1 . . . . Garrison Access Hacks . | . . . . . . . Unauthorized Hacks 5 | . 2 . 3 . . . Terminals 3 | . 2 . 1 . . . Botnet 2 | . 1 . 1 . . . Operators 1 | . 1 . . . . . Fabricators . | . . . . . . . Repair Stations . | . . . . . . . Recycling Units 1 | . . . 1 . . . Tunnel 1 | . . . 1 . . . Scanalyzers 1 | . . . 1 . . . Extract 1 | . . . 1 . . . Garrison Access . | . . . . . . . Data Cores Recovered . | . . . . . . . Used . | . . . . . . . Hacking Detections 10 | . 2 3 3 2 . . Full Trace Events . | . . . . . . . Feedback Events . | . . . . . . . Feedback Blocked . | . . . . . . . Robot Schematics Acquired . | . . . . . . . Robots Built . | . . . . . . . Authchips . | . . . . . . . Time . | . . . . . . . Total Robot Build Rating . | . . . . . . . Part Schematics Acquired 10 | . . 1 9 . . . Parts Built . | . . . . . . . Authchips . | . . . . . . . Time . | . . . . . . . Total Part Build Rating . | . . . . . . . Parts Repaired . | . . . . . . . Time . | . . . . . . . Parts Recycled . | . . . . . . . Recycled Matter . | . . . . . . . Retrieved Matter . | . . . . . . . Retrieved Components . | . . . . . . . Parts Scanalyzed 1 | . . 1 . . . . Part Schematics Acquired 1 | . . 1 . . . . Parts Damaged . | . . . . . . . Bothacking | -11 -10 -9 -8 -7 -7 -7 ------------ Run | Yrd Mat Mat Mat Fac Low Low Used RIF Installer . | . . . . . . . Robots Hacked . | . . . . . . . Non-combat . | . . . . . . . Combat . | . . . . . . . Robot Hacks Applied . | . . . . . . . Relay Couplers Released . | . . . . . . . Fabnet Peak Effective % . | . . . . . . . Robots Rewired . | . . . . . . . Allies Hacked . | . . . . . . . Hacks Repelled . | . . . . . . . Allies | -11 -10 -9 -8 -7 -7 -7 -------- Run | Yrd Mat Mat Mat Fac Low Low Total Allies 1 | . . . . . 1 . Largest Group 1 | . . . . . 1 . Highest-Rated Group 167 | . . . . . 167 . Highest-Rated Ally 167 | . . . . . 167 . Total Orders . | . . . . . . . Ally Attacks 5 | . . . . . 5 . Total Damage 305 | . . . . . 305 . Kills 4 | . . . . . 4 . Allies Corrupted . | . . . . . . . Allies Melted . | . . . . . . . Intel | -11 -10 -9 -8 -7 -7 -7 ------- Run | Yrd Mat Mat Mat Fac Low Low Robot Analysis Total . | . . . . . . . Derelict Logs Recovered 5 | . . . . . 2 3 Drone Launches . | . . . . . . . Drone Recoveries . | . . . . . . . Exploration | -11 -10 -9 -8 -7 -7 -7 ------------- Run | Yrd Mat Mat Mat Fac Low Low Turns Passed 6307 | 81 453 287 907 1798 2130 651 Spaces Moved 3163 | 55 288 170 284 763 1342 261 Core 64 | 15 . . 13 36 . . Treads 1939 | . . . 23 368 1341 207 Legs 499 | . . . 108 336 1 54 Wheels 215 | 40 75 45 32 23 . . Hover 446 | . 213 125 108 . . . Flight . | . . . . . . . Fastest Speed 50 | 50 90 110 50 50 152 152 Average Speed 150 | 85 109 135 174 141 154 196 Slowest Speed 360 | 100 185 176 360 305 280 240 Overloaded Moves . | . . . . . . . Propulsion Burnouts . | . . . . . . . Robots Hopped . | . . . . . . . Cave-ins Triggered . | . . . . . . . Exploration Rate (%) 38 | 3 52 25 27 27 98 38 Regions Visited 6 Branch Regions 2 Pre-discovered Areas 3 | . . . 1 . 2 . Known Exits Taken . | . . . . . . . Unknown Exits Taken 6 | 1 1 1 1 1 1 . Scrap Searched 10 | . . . . . 8 2 Spaces Dug 3 | . 1 . . 2 . . Terrain Destroyed 242 | . 1 2 34 195 1 9 Melee . | . . . . . . . Projectile 32 | . 1 2 7 12 1 9 AOE 210 | . . . 27 183 . . Terrain Rammed . | . . . . . . . Walls Destroyed . | . . . . . . . Machines Disabled . | . . . . . . . Actions | -11 -10 -9 -8 -7 -7 -7 --------- Run | Yrd Mat Mat Mat Fac Low Low Total 4260 | 74 356 205 604 1294 1390 337 Wait 568 | . 12 7 238 287 17 7 Move 3157 | 54 287 169 283 762 1341 261 Hop . | . . . . . . . Pick Up 49 | 6 5 2 4 21 10 1 Fast Attach 66 | 7 3 3 11 27 8 7 Attach 30 | . . 2 5 15 4 4 Detach 17 | . 1 2 . 12 1 1 Swap 38 | 2 4 4 4 18 4 2 Drop 46 | . 9 3 10 19 5 . Fire 283 | 5 35 13 49 132 . 49 Melee 5 | . . . . . . 5 Ram . | . . . . . . . Kick 1 | . . . . 1 . . Crush . | . . . . . . . Escape Stasis . | . . . . . . . Rewire . | . . . . . . . Trap . | . . . . . . . Miscellaneous . | . . . . . . . Route ------- -11/Scrapyard -10/Materials (discovered 2 exits: *Mat / [*Min]) -9/Materials -8/Materials -7/Factory (discovered 2 exits: [*Fac] / [*Low]) -7/Lower Caves -7/Lower Caves History --------- Turn | Location | Event 7 | -11/Scrapyard | Discovered new exit (range 15) 82 | -11/Scrapyard | Entered Materials 236 | -10/Materials | Discovered new exit (range 9) 347 | -10/Materials | Discovered new exit (range 12) 484 | -10/Materials | Build established: Scavenger-Mutant 535 | -10/Materials | Entered another Materials area 535 | -9/Materials | Evolved 2 slots: Propulsion x1, Utility x1 805 | -9/Materials | Discovered new exit (range 9) 822 | -9/Materials | Entered another Materials area 822 | -8/Materials | Evolved 2 slots: Utility x2 1230 | -8/Materials | Build established: Scavenger-Skirmisher 1676 | -8/Materials | Destroyed 7 combat bots 1688 | -8/Materials | Lost 3 parts (1p2w) 1708 | -8/Materials | Core integrity fell below 50% 1720 | -8/Materials | Discovered new exit (range 14) 1728 | -8/Materials | Core integrity fell below 20% 1729 | -8/Materials | Entered Factory 1729 | -7/Factory | Evolved 2 slots: Power x1, Propulsion x1 1732 | -7/Factory | Identified exit to DSF 1752 | -7/Factory | Lost 8 parts (1p2n1u4w) 1945 | -7/Factory | Build established: Skirmisher 2335 | -7/Factory | Discovered new exit (range 13) 2515 | -7/Factory | Cargo convoy interrupted 2770 | -7/Factory | Found Corrupted Prototype Launcher 2779 | -7/Factory | Identified Tesla Bomb Launcher 2780 | -7/Factory | System corruption reached 10% 2863 | -7/Factory | Found Tesla Bomb Launcher 2874 | -7/Factory | Lost 5 parts (1p2n1u1w) 3329 | -7/Factory | First assault squad dispatched 3331 | -7/Factory | Core integrity fell below 50% 3333 | -7/Factory | Build established: Mutant 3454 | -7/Factory | Discovered new exit (range 14) 3523 | -7/Factory | Core integrity fell below 20% 3527 | -7/Factory | Entered Lower Caves 3555 | -7/Lower Caves | Lost 12 parts (2p5n4u1w) 3641 | -7/Lower Caves | Found DCF Scrap (13 items) 3950 | -7/Lower Caves | Build established: Derelict-Mutant 5049 | -7/Lower Caves | P1-3CE showed up to help 5076 | -7/Lower Caves | Discovered new exit (range 5) 5656 | -7/Lower Caves | System corruption reached 30% 5657 | -7/Lower Caves | Entered another Lower Caves area 5705 | -7/Lower Caves | Learned Factory non-interactive machine intel 5798 | -7/Lower Caves | Lost 5 parts (2p1u2w) 5892 | -7/Lower Caves | Learned Factory terminal intel 5902 | -7/Lower Caves | Learned Factory machine intel 6303 | -7/Lower Caves | Attracted the attention of an 0b10 checkpoint 6308 | -7/Lower Caves | Destroyed by S-27 Virus with Autogun Last Messages --------------- 06196_ Acquired 17 matter. 06197_ Autogun fries itself beyond repair. 06200_ Acquired Autogun. 06205_ Acquired Lgt. Treads. 06213_ Acquired 4 matter. 06217_ Acquired 10 matter. 06219_ Acquired 3 matter. 06221_ Acquired 11 matter. 06223_ Acquired 6 matter. 06225_ Acquired 1 matter. 06231_ GEXBET#TYPQX<%7J70| D,L1 /PZ 06250_ System corrupted: Matter fused (-10). 06265_ System corrupted: FCS attempts to trigger Autogun. 06265_ System corrupted: Autogun misfires. 06287_ System corrupted: Energy discharge (-139). 06303_ Y-54 Guardian: "INTERCEPTING UNREGISTERED DERELICT." 06306_ Z%HYQYBX/I MDA#CWI3YE=F 06308_ System corrupted: Autogun jammed. 06308_ Slug penetrates S-27 Virus. 06308_ S-27 Virus destroyed. Map ----- +----------------------------------------------------+ | ?????????????????????????????????????????????????? | | ?????????????????????????????????????????????????? | | ?????????????????????????????????????????????????? | | ?????????????????????????????????????????????????? | | ?????????????????????????????????????????????????? | | ?????????????????????????????????????????????????? | | ?????????????????????????????????????????????????? | | ?????????????????????????????????????????????????? | | ?????????????????????????????????????????????????? | | ?????????????????????????????????????????????????? | | ?????????????????????????????????????????????????? | | ?????????? ??????????????????????????????####??? | | ??????????? ??????????????????????????#### #### | | ???????????? ?????????????????????????# # # # # | | ????????????? #????????????????????????# # # | | ?????????????# ??????????????????????## ## # | | ?????????????? ?????????????????????## #### # | | ??????????????? ????????????????????# ##??# !# | | ???????????????? ??????????????????## #??#% # | | ????????????????? ?????????????????# ##??# % | | ?????????????????? ? ????????????????## ##???# | | ??????????????????? ?????####???????# ##???## | | ??????????????????### #???## ##??##### #????# | | ??????????????????# ?## #### # #???## # | | ?????????????????## ## ## ##### ### | | ?????????????????# *%@ ### %#?? | | ??????????????#$ s ###### ### | | ?????????????#$ $# ##%#### ##???## % | | ?????????????????# #?# #??### ##???###% | | ????????????????# ??# #????## #?????## #### | | ????????????????#### ???# #?????# #?###??# ###??? | | ???????????????????#????# #????## ### ##?###????? | | ????????????????????????# #????# ### ##???????? | | ????????????????????????$ #???## ## ##??????? | | ????????????????????????###??## ####??## | | ????????????????????????????## ## ##?#" | | ???????????????????????####?# ##?# #### | | ??????????????????????## ### #??# | | ??????????????????????# ## ####??## | | ??????????????????????# ##?????## ## | | ????????????????????### #??????## ### | | ???????????????????## ##???????# #?# | | ??????????????????## ##????????# #?# | | ??????????????????# ###?????????# #?## | | ??????????????????## ##??????????# #??# | | ???????????????????## #??????????# #### | | ????????????????????# #####??????# # | | ?????????????????##### ### ##?????# # | | ????????????????## ## ### ## #####?#### # | | ????????????????# """"" #### ## ####?# | +----------------------------------------------------+ Best States ------------- Heat Dissipation 45 Energy Generation 27 Energy Capacity 480 Matter Stores 300 Matter Capacity 300 Sight Range 20 Robot Scan Range 15 Terrain Scan Range 16 Terrain Scan Density 110 Armor Coverage 225 Resistance: TH 25 Weapon Cycling 15 Phase Shifting 5 Evasion (%) 55 Targeting Accuracy 8 Melee Accuracy 6 Core Analysis 6 Recoil Reduction 4 Force Boost 20 Defensive Hacking 10 Item Schematics ----------------- Lrg. Battery | -9/Materials | Scanalyzed Particle Charger | -8/Materials | Extracted Minigun | -8/Materials | Extracted Hpw. Tractor Beam | -8/Materials | Extracted Cesium-ion Thruster | -8/Materials | Extracted Huge Storage Unit | -8/Materials | Extracted Prc. Beam Rifle | -8/Materials | Extracted Adv. EMP Blaster | -8/Materials | Extracted Flak Cannon | -8/Materials | Extracted Imp. VTOL Module | -8/Materials | Extracted Robot Schematics ------------------ None Fabricated ------------ Nothing Alien Tech Used ----------------- None Achievements -------------- None Challenges ------------ None Game ------ Seed HoverNetworkGravjet Manual? 0 Play Time 00:59:00 Cumulative 198.0 hours Start 2024.09.15 @ 21:26:57 End 2024.09.21 @ 13:04:20 Sessions 5 Manual Loads 0 Difficulty Rogue Special Mode None Game No. 200 Rogue 200 Adventurer 0 Explorer 0 Win Type - Total 0 Types 0/0/0/0/0/0/0/0/0 Lore% 23 Gallery% 58 Achievement% 44 Wizard Run 0 Options --------- Layout 0 ASCII 0 Keyboard 1 Movement Vi Keybinds 0 Fullscreen 1 Font 24/Smallcaps Map View 76x50 Zoom Use 0% Tactical HUD 1 Map Filters NONE Filters NONE Steam 1 RUN: 87d1409a-1bf7-44dc-bc15-e191a5ca8837